fUST/lending_fUST_20250625
["ID","MTS","AMOUNT","RATE_DAILY","PERIOD"]
[367461970,1750805455132,-151.0,0.00018082,2]
[367461972,1750805455142,-460.0,0.00018082,2]
[367461974,1750805455151,-388.561723,0.00018082,2]
[367461976,1750805455160,-388.561723,0.00018082,2]
[367461978,1750805455169,-460.0,0.00018082,2]
[367461980,1750805455178,-460.0,0.00018082,2]
[367461982,1750805455187,-151.0,0.00018082,2]
[367461984,1750805455196,-151.0,0.00018082,2]
[367461985,1750805455204,-460.0,0.00018082,2]
[367461987,1750805455213,-151.0,0.00018082,2]
[367461989,1750805455223,-563.82854174,0.00018082,2]
[367461991,1750805455232,-460.0,0.00018082,2]
[367461993,1750805455242,-799.75,0.00018082,2]
[367461995,1750805455251,-155.371939,0.00018082,2]
[367461997,1750805455260,-155.371939,0.00018082,2]
[367461999,1750805455270,-690.76,0.00018082,2]
[367462001,1750805455279,-1192.0,0.00018082,2]
[367462003,1750805455288,-788.69,0.00018082,2]
[367462005,1750805455298,-1264.22,0.00018082,2]
[367462007,1750805455307,-460.0,0.00018082,2]
[367462009,1750805455317,-477.27,0.00018082,2]
[367462011,1750805455326,-178.520182,0.00018082,2]
[367462013,1750805455336,-178.520182,0.00018082,2]
[367462015,1750805455345,-1272.14,0.00018082,2]
[367462017,1750805455354,-460.0,0.00018082,2]
[367462019,1750805455364,-460.0,0.00018082,2]
[367462022,1750805455375,-821.77,0.00018082,2]
[367462023,1750805455384,-270.80452957,0.00018082,2]
[367462025,1750805455394,-226.645457,0.00018082,2]
[367462027,1750805455403,-460.0,0.00018082,2]
[367462029,1750805455412,-460.0,0.00018082,2]
[367462031,1750805455421,-1159.92,0.00018082,2]
[367462033,1750805455430,-460.0,0.00018082,2]
[367462035,1750805455439,-347.96,0.00018082,2]
[367462037,1750805455448,-460.0,0.00018082,2]
[367462039,1750805455457,-695.91,0.00018082,2]
[367462041,1750805455466,-346.120825,0.00018082,2]
[367462043,1750805455476,-346.120825,0.00018082,2]
[367462045,1750805455486,-1860.5,0.00018082,2]
[367462047,1750805455495,-460.0,0.00018082,2]
[367462049,1750805455504,-173.498796,0.00018082,2]
[367462051,1750805455513,-595.97,0.00018082,2]
[367462053,1750805455523,-529.33,0.00018082,2]
[367462055,1750805455532,-173.498796,0.00018082,2]
[367462057,1750805455542,-537.54,0.00018082,2]
[367462059,1750805455551,-1320.72,0.00018082,2]
[367462061,1750805455561,-1055.46,0.00018082,2]
[367462063,1750805455570,-460.0,0.00018082,2]
[367462065,1750805455580,-460.0,0.00018082,2]
[367462067,1750805455590,-1377.63,0.00018082,2]
[367462069,1750805455600,-460.0,0.00018082,2]
[367462071,1750805455609,-182.3372037,0.00018221,2]
[367462073,1750805455619,-200.8096727,0.00018221,2]
[367462075,1750805455628,-170.5613124,0.00018284,2]
[367462077,1750805455637,-153.0,0.00018284,2]
[367462079,1750805455646,-153.0,0.00018284,2]
[367462081,1750805455655,-153.0,0.00018284,2]
[367462083,1750805455664,-1151.4,0.00018355,2]
[367462085,1750805455673,-250.80291801,0.00018356,2]
[367462087,1750805455682,-460.0,0.00018356,2]
[367462089,1750805455691,-460.0,0.00018356,2]
[367462091,1750805455700,-273.90028463,0.00018356,2]
[367462093,1750805455709,-460.0,0.00018356,2]
[367462095,1750805455719,-799.75,0.00018356,2]
[367462097,1750805455728,-690.76,0.00018356,2]
[367462099,1750805455737,-1192.0,0.00018356,2]
[367462101,1750805455748,-788.69,0.00018356,2]
[367462103,1750805455760,-1264.22,0.00018356,2]
[367462105,1750805455770,-465.03,0.00018356,2]
[367462107,1750805455779,-477.27,0.00018356,2]
[367462109,1750805455788,-1272.14,0.00018356,2]
[367462111,1750805455797,-460.0,0.00018356,2]
[367462113,1750805455807,-460.0,0.00018356,2]
[367462115,1750805455816,-821.77,0.00018356,2]
[367462117,1750805455824,-460.0,0.00018356,2]
[367462119,1750805455834,-460.0,0.00018356,2]
[367462120,1750805455844,-1159.92,0.00018356,2]
[367462122,1750805455853,-272.43,0.00018356,2]
[367462124,1750805455862,-460.0,0.00018356,2]
[367462126,1750805455871,-695.91,0.00018356,2]
[367462129,1750805455882,-343.938768,0.00018356,2]
[367462130,1750805455891,-343.938768,0.00018356,2]
[367462143,1750805455902,-1860.5,0.00018356,2]
[367462145,1750805456013,-460.0,0.00018356,2]
[367462148,1750805456025,-529.33,0.00018356,2]
[367462150,1750805456033,-537.54,0.00018356,2]
[367462152,1750805456043,-1320.72,0.00018356,2]
[367462154,1750805456052,-1055.46,0.00018356,2]
[367462156,1750805456061,-460.0,0.00018356,2]
[367462158,1750805456071,-255.42,0.00018356,2]
[367462160,1750805456081,-1377.63,0.00018356,2]
[367462162,1750805456090,-460.0,0.00018356,2]
[367462164,1750805456099,-965.0,0.00018488,2]
[367462166,1750805456108,-2160.0,0.00018488,2]
[367462168,1750805456118,-654.0,0.00018488,2]
[367462170,1750805456127,-406.0,0.00018488,2]
[367462172,1750805456136,-275.294019,0.00018601,2]
[367462174,1750805456146,-5000.0,0.00018601,2]
[367462176,1750805456156,-25000.0,0.00018601,2]
[367462178,1750805456165,-151.0,0.0001863,2]
[367462180,1750805456175,-151.0,0.0001863,2]
[367462182,1750805456184,-151.0,0.0001863,2]
[367462184,1750805456192,-151.0,0.0001863,2]
[367462186,1750805456202,-151.0,0.0001863,2]
[367462188,1750805456211,-151.0,0.0001863,2]
[367462190,1750805456220,-219.431033,0.0001863,2]
[367462192,1750805456229,-219.431033,0.0001863,2]
[367462194,1750805456239,-151.0,0.0001863,2]
[367462196,1750805456247,-151.0,0.0001863,2]
[367462198,1750805456257,-151.0,0.0001863,2]
[367462200,1750805456266,-151.0,0.0001863,2]
[367462202,1750805456275,-995.917908,0.0001863,2]
[367462204,1750805456284,-995.917908,0.0001863,2]
[367462206,1750805456294,-460.0,0.0001863,2]
[367462208,1750805456303,-350.455524,0.0001863,2]
[367462210,1750805456313,-460.0,0.0001863,2]
[367462212,1750805456322,-350.455524,0.0001863,2]
[367462214,1750805456331,-151.0,0.0001863,2]
[367462216,1750805456342,-151.0,0.0001863,2]
[367462218,1750805456351,-151.0,0.0001863,2]
[367462220,1750805456361,-248.744204,0.0001863,2]
[367462222,1750805456370,-248.744204,0.0001863,2]
[367462224,1750805456379,-151.0,0.0001863,2]
[367462226,1750805456389,-460.0,0.0001863,2]
[367462228,1750805456398,-799.75,0.0001863,2]
[367462230,1750805456407,-690.76,0.0001863,2]
[367462232,1750805456417,-1192.0,0.0001863,2]
[367462234,1750805456426,-308.374376,0.0001863,2]
[367462236,1750805456436,-151.0,0.0001863,2]
[367462238,1750805456445,-788.69,0.0001863,2]
[367462240,1750805456454,-308.374376,0.0001863,2]
[367462242,1750805456464,-1264.22,0.0001863,2]
[367462244,1750805456473,-477.27,0.0001863,2]
[367462246,1750805456482,-178.520182,0.0001863,2]
[367462248,1750805456492,-178.520182,0.0001863,2]
[367462250,1750805456502,-1272.14,0.0001863,2]
[367462252,1750805456511,-374.446491,0.0001863,2]
[367462254,1750805456520,-374.446491,0.0001863,2]
[367462256,1750805456529,-460.0,0.0001863,2]
[367462258,1750805456539,-460.0,0.0001863,2]
[367462259,1750805456548,-821.77,0.0001863,2]
[367462260,1750805456557,-460.0,0.0001863,2]
[367462261,1750805456566,-460.0,0.0001863,2]
[367462262,1750805456575,-1159.92,0.0001863,2]
[367462263,1750805456584,-460.0,0.0001863,2]
[367462264,1750805456594,-695.91,0.0001863,2]
[367462266,1750805456603,-346.120825,0.0001863,2]
[367462268,1750805456613,-346.120819,0.0001863,2]
[367462270,1750805456622,-1860.5,0.0001863,2]
[367462272,1750805456631,-412.29,0.0001863,2]
[367462274,1750805456640,-173.498796,0.0001863,2]
[367462276,1750805456649,-529.33,0.0001863,2]
[367462278,1750805456659,-173.498805,0.0001863,2]
[367462280,1750805456668,-537.54,0.0001863,2]
[367462282,1750805456677,-1320.72,0.0001863,2]
[367462284,1750805456687,-1055.46,0.0001863,2]
[367462286,1750805456696,-460.0,0.0001863,2]
[367462288,1750805456706,-1377.63,0.0001863,2]
[367462290,1750805456716,-460.0,0.0001863,2]
[367462292,1750805456725,-153.0,0.00018751,2]
[367462294,1750805456734,-153.0,0.00018751,2]
[367462296,1750805456743,-153.0,0.00018751,2]
[367462298,1750805456752,-153.0,0.00018751,2]
[367462300,1750805456766,-151.0,0.000188,2]
[367462302,1750805456775,-306.0,0.00018803,2]
[367462305,1750805456785,-998.266078,0.00018815,2]
[367462306,1750805456795,-636.0,0.00018839,2]
[367462308,1750805456805,-278.17716164,0.0001888,2]
[367462310,1750805456815,-1151.4,0.00018902,2]
[367462312,1750805456823,-460.0,0.00018904,2]
[367462314,1750805456834,-460.0,0.00018904,2]
[367462316,1750805456843,-151.0,0.00018904,2]
[367462318,1750805456852,-151.0,0.00018904,2]
[367462320,1750805456862,-209.2,0.00018904,2]
[367462323,1750805456871,-799.75,0.00018904,2]
[367462325,1750805456881,-155.371939,0.00018904,2]
[367462327,1750805456890,-155.371939,0.00018904,2]
[367462329,1750805456899,-690.76,0.00018904,2]
[367462331,1750805456909,-1192.0,0.00018904,2]
[367462333,1750805456919,-788.69,0.00018904,2]
[367462335,1750805456933,-1264.22,0.00018904,2]
[367462337,1750805456943,-477.27,0.00018904,2]
[367462339,1750805456953,-1272.14,0.00018904,2]
[367462340,1750805456962,-586.36,0.00018904,2]
[367462343,1750805456972,-590.86,0.00018904,2]
[367462344,1750805456981,-821.77,0.00018904,2]
[367462347,1750805456991,-419.58,0.00018904,2]
[367462349,1750805457000,-460.0,0.00018904,2]
[367462351,1750805457009,-1159.92,0.00018904,2]
[367462353,1750805457018,-460.0,0.00018904,2]
[367462354,1750805457027,-695.91,0.00018904,2]
[367462357,1750805457037,-343.938768,0.00018904,2]
[367462359,1750805457046,-343.938768,0.00018904,2]
[367462361,1750805457055,-1860.5,0.00018904,2]
[367462363,1750805457064,-529.33,0.00018904,2]
[367462365,1750805457073,-537.54,0.00018904,2]
[367462367,1750805457083,-1320.72,0.00018904,2]
[367462369,1750805457093,-1055.46,0.00018904,2]
[367462371,1750805457102,-460.0,0.00018904,2]
[367462373,1750805457111,-1377.63,0.00018904,2]
[367462375,1750805457120,-460.0,0.00018904,2]
[367462377,1750805457130,-18918.11068178,0.00019,2]
[367462379,1750805457139,-18918.11068173,0.00019,2]
[367462381,1750805457148,-18918.11068173,0.00019,2]
[367462383,1750805457158,-18918.11068173,0.00019,2]
[367462385,1750805457167,-18918.11068173,0.00019,2]
[367462387,1750805457176,-18918.11068173,0.00019,2]
[367462389,1750805457185,-18918.11068173,0.00019,2]
[367462391,1750805457194,-18918.11068173,0.00019,2]
[367462393,1750805457203,-18918.11068173,0.00019,2]
[367462395,1750805457212,-301.293437,0.00019009,2]
[367462397,1750805457222,-301.293437,0.00019009,2]
[367462399,1750805457230,-282.56866,0.00019009,2]
[367462401,1750805457240,-282.56866,0.00019009,2]
[367462403,1750805457250,-636.0,0.00019017,2]
[367462405,1750805457259,-18918.11068173,0.00019072,2]
[367462407,1750805457268,-153.0,0.0001908,2]
[367462409,1750805457277,-153.0,0.0001908,2]
[367462411,1750805457287,-160.4183433,0.0001908,2]
[367462413,1750805457297,-153.0,0.0001908,2]
[367462415,1750805457306,-311.8532306,0.0001908,2]
[367462417,1750805457315,-153.0,0.0001908,2]
[367462419,1750805457324,-153.0,0.0001908,2]
[367462421,1750805457334,-153.0,0.0001908,2]
[367462423,1750805457343,-153.0,0.0001908,2]
[367462425,1750805457354,-1151.4,0.00019099,2]
[367462427,1750805457363,-1151.4,0.00019099,2]
[367462429,1750805457373,-1151.4,0.00019099,2]
[367462431,1750805457382,-1151.4,0.00019099,2]
[367462433,1750805457391,-1151.4,0.00019099,2]
[367462435,1750805457401,-1151.48156948,0.00019099,2]
[367462437,1750805457410,-301.243142,0.000191,2]
[367462439,1750805457419,-152.266971,0.000191,2]
[367462441,1750805457427,-151.175171,0.000191,2]
[367462443,1750805457437,-151.0,0.000191,2]
[367462445,1750805457446,-151.0,0.000191,2]
[367462447,1750805457455,-151.610754,0.000191,2]
[367462449,1750805457464,-151.0,0.000191,2]
[367462451,1750805457473,-151.0,0.000191,2]
[367462453,1750805457482,-151.0,0.000191,2]
[367462455,1750805457491,-151.0,0.000191,2]
[367462457,1750805457500,-152.307985,0.000191,2]
[367462459,1750805457509,-153.488293,0.000191,2]
[367462461,1750805457518,-151.0,0.000191,2]
[367462463,1750805457528,-151.0,0.000191,2]
[367462465,1750805457537,-151.0,0.000191,2]
[367462466,1750805457546,-151.0,0.000191,2]
[367462468,1750805457555,-151.0,0.000191,2]
[367462470,1750805457564,-151.0,0.000191,2]
[367462472,1750805457573,-151.0,0.000191,2]
[367462474,1750805457583,-151.0,0.000191,2]
[367462476,1750805457592,-151.0,0.000191,2]
[367462478,1750805457601,-151.0,0.000191,2]
[367462480,1750805457611,-151.0,0.000191,2]
[367462482,1750805457620,-151.0,0.000191,2]
[367462484,1750805457629,-151.0,0.000191,2]
[367462486,1750805457638,-249.183179,0.000191,2]
[367462488,1750805457647,-151.0,0.000191,2]
[367462490,1750805457656,-151.0,0.000191,2]
[367462492,1750805457665,-151.0,0.000191,2]
[367462494,1750805457674,-151.0,0.000191,2]
[367462496,1750805457683,-151.0,0.000191,2]
[367462498,1750805457692,-151.0,0.000191,2]
[367462500,1750805457701,-151.0,0.000191,2]
[367462502,1750805457711,-151.0,0.000191,2]
[367462504,1750805457720,-151.0,0.000191,2]
[367462506,1750805457729,-160.452438,0.000191,2]
[367462508,1750805457738,-219.431033,0.000191,2]
[367462510,1750805457748,-219.431033,0.000191,2]
[367462512,1750805457758,-219.431033,0.000191,2]
[367462514,1750805457769,-219.431033,0.000191,2]
[367462516,1750805457778,-1204.037727,0.000191,2]
[367462518,1750805457793,-1204.037727,0.000191,2]
[367462520,1750805457808,-151.0,0.000191,2]
[367462523,1750805457818,-151.0,0.000191,2]
[367462525,1750805457828,-151.0,0.000191,2]
[367462526,1750805457839,-151.0,0.000191,2]
[367462528,1750805457849,-151.0,0.000191,2]
[367462531,1750805457858,-151.0,0.000191,2]
[367462534,1750805457877,-151.0,0.000191,2]
[367462536,1750805457886,-151.0,0.000191,2]
[367462538,1750805457895,-301.293437,0.000191,2]
[367462540,1750805457904,-301.293437,0.000191,2]
[367462542,1750805457914,-995.917908,0.000191,2]
[367462544,1750805457923,-995.917908,0.000191,2]
[367462546,1750805457932,-282.56866,0.000191,2]
[367462548,1750805457941,-995.917908,0.000191,2]
[367462550,1750805457950,-995.917908,0.000191,2]
[367462552,1750805457959,-282.56866,0.000191,2]
[367462554,1750805457969,-170.435313,0.000191,2]
[367462556,1750805457978,-170.435313,0.000191,2]
[367462558,1750805457987,-170.435313,0.000191,2]
[367462560,1750805457996,-170.435313,0.000191,2]
[367462562,1750805458005,-170.435313,0.000191,2]
[367462564,1750805458015,-170.435313,0.000191,2]
[367462581,1750805458159,-151.0,0.000191,2]
[367462583,1750805458178,-388.561723,0.000191,2]
[367462585,1750805458187,-388.561723,0.000191,2]
[367462587,1750805458196,-388.561723,0.000191,2]
[367462589,1750805458205,-388.561723,0.000191,2]
[367462591,1750805458215,-388.561723,0.000191,2]
[367462593,1750805458224,-388.561723,0.000191,2]
[367462595,1750805458233,-350.455524,0.000191,2]
[367462597,1750805458243,-350.455524,0.000191,2]
[367462599,1750805458252,-350.455524,0.000191,2]
[367462601,1750805458261,-350.455524,0.000191,2]
[367462603,1750805458270,-350.455524,0.000191,2]
[367462605,1750805458279,-350.455524,0.000191,2]
[367462607,1750805458288,-151.0,0.000191,2]
[367462609,1750805458298,-151.0,0.000191,2]
[367462611,1750805458307,-151.0,0.000191,2]
[367462613,1750805458317,-151.0,0.000191,2]
[367462615,1750805458326,-151.0,0.000191,2]
[367462617,1750805458335,-151.0,0.000191,2]
[367462619,1750805458344,-266.368635,0.000191,2]
[367462621,1750805458354,-1500.0,0.000191,7]
[367462623,1750805458363,-1500.0,0.000191,7]
[367462625,1750805458372,-1500.0,0.000191,7]
[367462627,1750805458382,-1500.0,0.000191,7]
[367462629,1750805458391,-1500.0,0.000191,7]
[367462631,1750805458400,-1500.0,0.000191,7]
[367462633,1750805458409,-1500.0,0.000191,7]
[367462635,1750805458419,-1500.0,0.000191,7]
[367462637,1750805458428,-1500.0,0.000191,7]
[367462639,1750805458438,-1500.0,0.000191,7]
[367462641,1750805458448,-1500.0,0.000191,7]
[367462643,1750805458457,-1500.0,0.000191,7]
[367462645,1750805458466,-1500.0,0.000191,7]
[367462647,1750805458475,-1500.0,0.000191,7]
[367462649,1750805458485,-1500.0,0.000191,7]
[367462651,1750805458494,-151.0,0.000191,2]
[367462653,1750805458503,-1500.0,0.000191,7]
[367462655,1750805458512,-151.0,0.000191,2]
[367462657,1750805458521,-1500.0,0.000191,7]
[367462659,1750805458530,-151.0,0.000191,2]
[367462661,1750805458539,-151.0,0.000191,2]
[367462663,1750805458549,-151.0,0.000191,2]
[367462665,1750805458558,-1500.0,0.000191,7]
[367462667,1750805458567,-1500.0,0.000191,7]
[367462669,1750805458575,-1500.0,0.000191,7]
[367462671,1750805458585,-1500.0,0.000191,7]
[367462673,1750805458594,-1500.0,0.000191,7]
[367462675,1750805458603,-1500.0,0.000191,7]
[367462677,1750805458612,-1500.0,0.000191,7]
[367462679,1750805458621,-1500.0,0.000191,7]
[367462681,1750805458631,-174.859398,0.000191,7]
[367462683,1750805458640,-151.0,0.000191,2]
[367462685,1750805458649,-159.487609,0.000191,2]
[367462687,1750805458659,-248.744204,0.000191,2]
[367462689,1750805458668,-248.744204,0.000191,2]
[367462691,1750805458677,-248.744204,0.000191,2]
[367462693,1750805458687,-248.744204,0.000191,2]
[367462695,1750805458697,-248.744204,0.000191,2]
[367462697,1750805458707,-248.744204,0.000191,2]
[367462699,1750805458716,-151.0,0.000191,2]
[367462701,1750805458725,-151.0,0.000191,2]
[367462703,1750805458734,-201.518914,0.000191,2]
[367462705,1750805458744,-155.371939,0.000191,2]
[367462707,1750805458753,-155.371939,0.000191,2]
[367462709,1750805458766,-155.371939,0.000191,2]
[367462711,1750805458776,-155.371939,0.000191,2]
[367462713,1750805458785,-308.374376,0.000191,2]
[367462715,1750805458795,-308.374376,0.000191,2]
[367462717,1750805458806,-308.374376,0.000191,2]
[367462719,1750805458815,-151.0,0.000191,2]
[367462721,1750805458825,-169.966405,0.000191,2]
[367462723,1750805458834,-308.374376,0.000191,2]
[367462725,1750805458844,-308.374376,0.000191,2]
[367462727,1750805458854,-308.374376,0.000191,2]
[367462729,1750805458863,-12556.00642039,0.000191,7]
[367462731,1750805458873,-178.520182,0.000191,2]
[367462733,1750805458882,-178.520182,0.000191,2]
[367462735,1750805458891,-178.520182,0.000191,2]
[367462737,1750805458901,-178.520181,0.000191,2]
[367462739,1750805458911,-374.446491,0.000191,2]
[367462741,1750805458920,-374.446491,0.000191,2]
[367462743,1750805458929,-374.446491,0.000191,2]
[367462745,1750805458938,-374.446491,0.000191,2]
[367462747,1750805458948,-213.66798275,0.000191,7]
[367462749,1750805458958,-846.68469334,0.000191,7]
[367462751,1750805458967,-343.938768,0.000191,2]
[367462753,1750805458976,-343.938764,0.000191,2]
[367462755,1750805458985,-25000.0,0.00019149,2]
[367462757,1750805458994,-500.0,0.00019178,2]
[367462759,1750805459004,-500.0,0.00019178,2]
[367462761,1750805459013,-500.0,0.00019178,2]
[367462763,1750805459022,-500.0,0.00019178,2]
[367462765,1750805459031,-534.59049818,0.00019178,2]
[367462767,1750805459040,-500.0,0.00019178,2]
[367462769,1750805459049,-500.0,0.00019178,2]
[367462771,1750805459058,-500.0,0.00019178,2]
[367462773,1750805459067,-500.0,0.00019178,2]
[367462775,1750805459076,-500.0,0.00019178,2]
[367462777,1750805459085,-500.0,0.00019178,2]
[367462780,1750805459102,-500.0,0.00019178,2]
[367462783,1750805459119,-500.0,0.00019178,2]
[367462785,1750805459131,-400.0,0.00019178,2]
[367462788,1750805459146,-226.64650297,0.00019178,2]
[367462790,1750805459161,-300.0,0.00019178,2]
[367462793,1750805459177,-151.0,0.00019178,2]
[367462795,1750805459192,-151.0,0.00019178,2]
[367462798,1750805459207,-152.44419344,0.00019178,2]
[367462801,1750805459221,-312.0294991,0.00019178,2]
[367462803,1750805459234,-151.0,0.00019178,2]
[367462806,1750805459248,-219.431033,0.00019178,2]
[367462808,1750805459263,-219.431033,0.00019178,2]
[367462810,1750805459275,-1204.037727,0.00019178,2]
[367462813,1750805459287,-151.0,0.00019178,2]
[367462815,1750805459300,-151.0,0.00019178,2]
[367462818,1750805459314,-151.0,0.00019178,2]
[367462820,1750805459329,-170.560399,0.00019178,2]
[367462823,1750805459344,-301.293437,0.00019178,2]
[367462826,1750805459360,-301.293437,0.00019178,2]
[367462828,1750805459372,-995.917908,0.00019178,2]
[367462831,1750805459383,-282.56866,0.00019178,2]
[367462833,1750805459398,-995.917908,0.00019178,2]
[367462836,1750805459413,-282.56866,0.00019178,2]
[367462838,1750805459424,-460.0,0.00019178,2]
[367462840,1750805459436,-460.0,0.00019178,2]
[367462843,1750805459450,-799.75,0.00019178,2]
[367462845,1750805459461,-690.76,0.00019178,2]
[367462847,1750805459473,-1192.0,0.00019178,2]
[367462850,1750805459486,-788.69,0.00019178,2]
[367462852,1750805459497,-1264.22,0.00019178,2]
[367462854,1750805459510,-477.27,0.00019178,2]
[367462857,1750805459522,-1272.14,0.00019178,2]
[367462859,1750805459534,-374.446491,0.00019178,2]
[367462862,1750805459547,-374.446491,0.00019178,2]
[367462864,1750805459560,-821.77,0.00019178,2]
[367462866,1750805459572,-151.0,0.00019178,2]
[367462869,1750805459585,-284.19,0.00019178,2]
[367462871,1750805459597,-1159.92,0.00019178,2]
[367462873,1750805459609,-460.0,0.00019178,2]
[367462876,1750805459622,-695.91,0.00019178,2]
[367462878,1750805459634,-1860.5,0.00019178,2]
[367462880,1750805459646,-529.33,0.00019178,2]
[367462883,1750805459658,-537.54,0.00019178,2]
[367462885,1750805459671,-1320.72,0.00019178,2]
[367462887,1750805459683,-1055.46,0.00019178,2]
[367462890,1750805459695,-460.0,0.00019178,2]
[367462892,1750805459708,-1377.63,0.00019178,2]
[367462894,1750805459721,-175.14,0.00019178,2]
[367462897,1750805459733,-729.272857,0.00019178,2]
[367462899,1750805459745,-636.0,0.00019195,2]
[367462901,1750805459757,-18918.11068173,0.00019314,2]
[367462904,1750805459772,-170.435313,0.00019314,2]
[367462906,1750805459784,-170.435313,0.00019314,2]
[367462908,1750805459796,-388.561723,0.00019314,2]
[367462911,1750805459810,-388.561723,0.00019314,2]
[367462913,1750805459822,-151.0,0.00019314,2]
[367462915,1750805459834,-151.0,0.00019314,2]
[367462918,1750805459847,-155.371939,0.00019314,2]
[367462920,1750805459859,-155.371939,0.00019314,2]
[367462922,1750805459871,-151.0,0.00019328,2]
[367462924,1750805459883,-200.0,0.00019328,2]
[367462927,1750805459896,-424.70155808,0.00019329,2]
[367462929,1750805459908,-151.0,0.00019329,2]
[367462931,1750805459920,-151.0,0.00019329,2]
[367462934,1750805459933,-151.0,0.00019329,2]
[367462936,1750805459945,-151.0,0.00019329,2]
[367462938,1750805459957,-151.0,0.00019329,2]
[367462940,1750805459969,-170.456833,0.00019329,2]
[367462943,1750805459982,-151.0,0.00019329,2]
[367462945,1750805459994,-151.0,0.00019329,2]
[367462947,1750805460006,-151.0,0.00019329,2]
[367462950,1750805460019,-151.0,0.00019329,2]
[367462952,1750805460031,-151.0,0.00019329,2]
[367462954,1750805460044,-151.0,0.00019329,2]
[367462957,1750805460057,-151.0,0.00019329,2]
[367462959,1750805460069,-219.431033,0.00019329,2]
[367462961,1750805460082,-219.431033,0.00019329,2]
[367462963,1750805460093,-1204.037727,0.00019329,2]
[367462966,1750805460106,-151.0,0.00019329,2]
[367462968,1750805460117,-155.445115,0.00019329,2]
[367462970,1750805460130,-301.293437,0.00019329,2]
[367462972,1750805460143,-301.293437,0.00019329,2]
[367462975,1750805460155,-995.917908,0.00019329,2]
[367462977,1750805460167,-282.56866,0.00019329,2]
[367462979,1750805460179,-995.917908,0.00019329,2]
[367462982,1750805460191,-282.56866,0.00019329,2]
[367462984,1750805460204,-170.435313,0.00019329,2]
[367462986,1750805460217,-170.435313,0.00019329,2]
[367462989,1750805460230,-388.561723,0.00019329,2]
[367462991,1750805460243,-388.561723,0.00019329,2]
[367462993,1750805460256,-350.455524,0.00019329,2]
[367462995,1750805460269,-350.455524,0.00019329,2]
[367462998,1750805460282,-208.245145,0.00019329,2]
[367463000,1750805460296,-151.0,0.00019329,2]
[367463002,1750805460307,-151.0,0.00019329,2]
[367463004,1750805460316,-151.0,0.00019329,2]
[367463006,1750805460325,-248.744204,0.00019329,2]
[367463024,1750805460335,-248.744204,0.00019329,2]
[367463028,1750805460513,-155.371939,0.00019329,2]
[367463029,1750805460523,-155.371938,0.00019329,2]
[367463031,1750805460532,-308.374376,0.00019329,2]
[367463033,1750805460543,-308.374376,0.00019329,2]
[367463035,1750805460552,-374.446491,0.00019329,2]
[367463037,1750805460562,-374.446484,0.00019329,2]
[367463039,1750805460571,-62908.86125349,0.00019329,2]
[367463041,1750805460581,-155.10758527,0.00019339,2]